fUST/lending_fUST_20251001
["ID","MTS","AMOUNT","RATE_DAILY","PERIOD"]
[388698185,1759321832807,-500.0,0.00019164,2]
[388698186,1759321832815,-500.0,0.00019164,2]
[388698187,1759321832826,-312.9766727,0.00019164,2]
[388698188,1759321832837,-310.91456966,0.00019164,2]
[388698189,1759321832849,-500.0,0.00019164,2]
[388698190,1759321832859,-388.2153044,0.00019164,2]
[388698191,1759321832882,-111.7846956,0.00019164,2]
[388698192,1759321832892,-500.0,0.00019164,2]
[388698193,1759321832902,-500.0,0.00019164,2]
[388698194,1759321832913,-372.8853044,0.00019164,2]
[388698195,1759321832926,-127.1146956,0.00019164,2]
[388698196,1759321832936,-500.0,0.00019164,2]
[388698197,1759321832946,-500.0,0.00019164,2]
[388698198,1759321832956,-500.0,0.00019164,2]
[388698199,1759321832967,-500.0,0.00019164,2]
[388698200,1759321832976,-500.0,0.00019164,2]
[388698201,1759321832986,-500.0,0.00019164,2]
[388698202,1759321832996,-499.99999999,0.00019164,2]
[388698203,1759321833006,-1888.91,0.00019168,3]
[388698204,1759321833016,-944.45,0.00019168,3]
[388698205,1759321833025,-472.23,0.00019168,3]
[388698206,1759321833035,-236.11,0.00019168,3]
[388698207,1759321833044,-708.36,0.00019168,3]
[388698208,1759321833054,-500.0,0.00019173,2]
[388698209,1759321833064,-500.0,0.00019173,2]
[388698210,1759321833073,-500.0,0.00019173,2]
[388698211,1759321833083,-500.0,0.00019173,2]
[388698212,1759321833093,-500.0,0.00019173,2]
[388698213,1759321833104,-500.0,0.00019173,2]
[388698214,1759321833114,-500.0,0.00019173,2]
[388698215,1759321833123,-500.0,0.00019173,2]
[388698216,1759321833132,-500.0,0.00019173,2]
[388698217,1759321833142,-500.0,0.00019173,2]
[388698218,1759321833151,-500.0,0.00019173,2]
[388698219,1759321833161,-501.44660787,0.00019173,2]
[388698220,1759321833171,-500.0,0.00019173,2]
[388698221,1759321833180,-500.0,0.00019173,2]
[388698222,1759321833190,-500.0,0.00019173,2]
[388698223,1759321833199,-500.0,0.00019173,2]
[388698224,1759321833209,-920.0,0.00019175,2]
[388698225,1759321833219,-181.11243802,0.00019175,2]
[388698226,1759321833228,-151.0,0.00019175,2]
[388698227,1759321833237,-151.0,0.00019176,2]
[388698228,1759321833247,-151.0,0.00019176,2]
[388698229,1759321833256,-151.0,0.00019176,2]
[388698230,1759321833267,-151.0,0.00019176,2]
[388698231,1759321833276,-151.0,0.00019176,2]
[388698232,1759321833286,-151.73328894,0.00019176,2]
[388698233,1759321833295,-151.0,0.00019176,2]
[388698234,1759321833315,-151.0,0.00019177,2]
[388698235,1759321833327,-151.0,0.00019177,2]
[388698236,1759321833339,-151.64028086,0.00019177,2]
[388698237,1759321833350,-151.0,0.00019177,2]
[388698238,1759321833360,-152.13909428,0.00019177,2]
[388698239,1759321833370,-151.0,0.00019177,2]
[388698240,1759321833380,-575.41,0.00019178,2]
[388698241,1759321833390,-482.3402412,0.00019178,2]
[388698242,1759321833400,-150.0,0.00019178,2]
[388698243,1759321833410,-300.0,0.00019178,2]
[388698244,1759321833420,-450.0,0.00019178,2]
[388698245,1759321833430,-600.0,0.00019178,2]
[388698246,1759321833441,-541.81976818,0.00019178,2]
[388698247,1759321833451,-520.0,0.00019178,3]
[388698248,1759321833461,-481.63424143,0.00019178,2]
[388698249,1759321833471,-500.0,0.00019178,2]
[388698250,1759321833482,-482.22901942,0.00019178,2]
[388698251,1759321833492,-501.82339183,0.00019178,2]
[388698252,1759321833501,-501.26271719,0.00019178,2]
[388698253,1759321833511,-500.0,0.00019178,2]
[388698254,1759321833521,-500.0,0.00019178,2]
[388698255,1759321833531,-500.0,0.00019178,2]
[388698256,1759321833540,-500.0,0.00019178,2]
[388698257,1759321833549,-500.0,0.00019178,2]
[388698258,1759321833560,-500.0,0.00019178,2]
[388698259,1759321833569,-500.0,0.00019178,2]
[388698260,1759321833580,-482.05575443,0.00019178,2]
[388698261,1759321833589,-732.69,0.00019178,2]
[388698262,1759321833599,-500.0,0.00019178,2]
[388698263,1759321833609,-201.09131608,0.00019178,2]
[388698264,1759321833619,-500.0,0.00019178,2]
[388698265,1759321833629,-500.0,0.00019178,2]
[388698266,1759321833639,-500.0,0.00019178,2]
[388698267,1759321833649,-500.0,0.00019178,2]
[388698268,1759321833659,-502.46,0.00019178,2]
[388698269,1759321833668,-500.0,0.00019178,2]
[388698270,1759321833678,-500.0,0.00019178,2]
[388698271,1759321833688,-500.0,0.00019178,2]
[388698272,1759321833697,-500.0,0.00019178,2]
[388698273,1759321833707,-500.0,0.00019178,2]
[388698274,1759321833717,-500.0,0.00019178,2]
[388698275,1759321833726,-500.0,0.00019178,2]
[388698276,1759321833736,-500.0,0.00019178,2]
[388698277,1759321833746,-500.0,0.00019178,2]
[388698278,1759321833756,-500.0,0.00019178,2]
[388698279,1759321833766,-471.41761404,0.00019178,2]
[388698280,1759321833776,-500.0,0.00019178,2]
[388698281,1759321833786,-185.58085585,0.00019178,2]
[388698282,1759321833795,-527.52,0.00019178,2]
[388698283,1759321833805,-500.0,0.00019178,2]
[388698284,1759321833815,-500.0,0.00019178,2]
[388698285,1759321833827,-480.0,0.00019178,2]
[388698286,1759321833838,-540.44,0.00019178,2]
[388698287,1759321833848,-480.0,0.00019178,2]
[388698288,1759321833858,-500.0,0.00019178,2]
[388698289,1759321833869,-481.8104227,0.00019178,2]
[388698290,1759321833879,-480.0,0.00019178,2]
[388698291,1759321833888,-500.0,0.00019178,2]
[388698292,1759321833897,-500.0,0.00019178,2]
[388698293,1759321833907,-425.44274318,0.00019178,2]
[388698294,1759321833919,-1093.76,0.00019178,2]
[388698295,1759321833929,-500.0,0.00019178,2]
[388698296,1759321833939,-500.0,0.00019178,2]
[388698297,1759321833948,-500.0,0.00019178,2]
[388698298,1759321833958,-500.0,0.00019178,2]
[388698299,1759321833968,-500.0,0.00019178,2]
[388698300,1759321833977,-480.0,0.00019178,2]
[388698301,1759321833987,-653.65,0.00019178,2]
[388698302,1759321833997,-480.0,0.00019178,2]
[388698303,1759321834006,-316.23958041,0.00019178,2]
[388698304,1759321834016,-480.0,0.00019178,2]
[388698305,1759321834026,-482.59733888,0.00019178,2]
[388698306,1759321834036,-480.0,0.00019178,2]
[388698307,1759321834046,-482.01083594,0.00019178,2]
[388698308,1759321834055,-500.0,0.00019178,2]
[388698309,1759321834067,-500.0,0.00019178,2]
[388698310,1759321834078,-775.98,0.00019178,2]
[388698311,1759321834087,-500.0,0.00019178,2]
[388698312,1759321834097,-500.0,0.00019178,2]
[388698313,1759321834107,-451.95210194,0.00019178,2]
[388698314,1759321834116,-530.13807382,0.00019178,2]
[388698315,1759321834125,-726.09,0.00019178,2]
[388698316,1759321834135,-500.0,0.00019178,2]
[388698317,1759321834144,-580.53,0.00019178,2]
[388698318,1759321834153,-500.0,0.00019178,2]
[388698319,1759321834163,-500.0,0.00019178,2]
[388698320,1759321834173,-500.0,0.00019178,2]
[388698321,1759321834183,-500.0,0.00019178,2]
[388698322,1759321834192,-500.0,0.00019178,2]
[388698323,1759321834201,-769.46,0.00019178,2]
[388698324,1759321834211,-480.0,0.00019178,2]
[388698325,1759321834220,-500.0,0.00019178,2]
[388698326,1759321834229,-1943.96,0.00019178,2]
[388698327,1759321834239,-500.0,0.00019178,2]
[388698328,1759321834248,-481.70358537,0.00019178,2]
[388698329,1759321834258,-500.0,0.00019178,2]
[388698330,1759321834270,-612.02,0.00019178,2]
[388698331,1759321834279,-969.0,0.00019178,2]
[388698332,1759321834289,-482.65793283,0.00019178,2]
[388698333,1759321834299,-763.2,0.00019178,2]
[388698334,1759321834309,-480.0,0.00019178,2]
[388698335,1759321834319,-500.0,0.00019178,2]
[388698336,1759321834328,-662.1,0.00019178,2]
[388698337,1759321834338,-484.12149758,0.00019178,2]
[388698338,1759321834348,-500.0,0.00019178,2]
[388698339,1759321834358,-500.0,0.00019178,2]
[388698340,1759321834368,-1161.75,0.00019178,2]
[388698341,1759321834378,-480.0,0.00019178,2]
[388698342,1759321834387,-1820.64,0.00019178,2]
[388698343,1759321834396,-711.47,0.00019178,2]
[388698344,1759321834406,-500.0,0.00019178,2]
[388698345,1759321834415,-688.73,0.00019178,2]
[388698346,1759321834425,-1119.87,0.00019178,2]
[388698347,1759321834434,-695.1,0.00019178,2]
[388698348,1759321834443,-396.83273664,0.00019178,2]
[388698349,1759321834453,-557.33,0.00019178,2]
[388698350,1759321834463,-401.53618525,0.00019178,2]
[388698351,1759321834472,-2140.28,0.00019178,2]
[388698352,1759321834482,-914.94,0.00019178,2]
[388698353,1759321834491,-480.0,0.00019178,2]
[388698354,1759321834501,-500.0,0.00019178,2]
[388698355,1759321834510,-716.76,0.00019178,2]
[388698356,1759321834521,-500.0,0.00019178,2]
[388698357,1759321834530,-500.0,0.00019178,2]
[388698358,1759321834539,-481.7655025,0.00019178,2]
[388698359,1759321834549,-500.0,0.00019178,2]
[388698360,1759321834559,-500.0,0.00019178,2]
[388698361,1759321834569,-500.0,0.00019178,2]
[388698362,1759321834579,-482.44299236,0.00019178,2]
[388698363,1759321834589,-480.0,0.00019178,2]
[388698364,1759321834599,-273.93752965,0.00019178,2]
[388698365,1759321834609,-545.9,0.00019178,2]
[388698366,1759321834618,-500.0,0.00019178,2]
[388698367,1759321834628,-575.31406213,0.00019178,2]
[388698368,1759321834637,-1047.55,0.00019178,2]
[388698369,1759321834647,-500.0,0.00019178,2]
[388698370,1759321834657,-500.0,0.00019178,2]
[388698371,1759321834666,-500.0,0.00019178,2]
[388698372,1759321834676,-2079.09,0.00019178,2]
[388698373,1759321834685,-481.65463056,0.00019178,2]
[388698374,1759321834695,-816.71,0.00019178,2]
[388698375,1759321834705,-500.0,0.00019178,2]
[388698376,1759321834715,-500.0,0.00019178,2]
[388698377,1759321834724,-500.0,0.00019178,2]
[388698378,1759321834735,-1092.96,0.00019178,2]
[388698379,1759321834744,-480.0,0.00019178,2]
[388698380,1759321834753,-500.0,0.00019178,2]
[388698381,1759321834763,-484.16129657,0.00019178,2]
[388698382,1759321834772,-500.0,0.00019178,2]
[388698383,1759321834782,-758.83,0.00019178,2]
[388698384,1759321834792,-583.79,0.00019178,2]
[388698385,1759321834801,-500.0,0.00019178,2]
[388698386,1759321834811,-500.0,0.00019178,2]
[388698387,1759321834821,-500.0,0.00019178,2]
[388698388,1759321834833,-636.07,0.00019178,2]
[388698389,1759321834845,-500.0,0.00019178,2]
[388698390,1759321834854,-377.62486681,0.00019178,2]
[388698391,1759321834863,-500.0,0.00019178,2]
[388698392,1759321834874,-480.0,0.00019178,2]
[388698393,1759321834883,-500.0,0.00019178,2]
[388698394,1759321834893,-500.0,0.00019178,2]
[388698395,1759321834903,-500.0,0.00019178,2]
[388698396,1759321834913,-500.0,0.00019178,2]
[388698397,1759321834923,-500.0,0.00019178,2]
[388698398,1759321834932,-500.0,0.00019178,2]
[388698399,1759321834942,-500.0,0.00019178,2]
[388698400,1759321834951,-500.0,0.00019178,2]
[388698401,1759321834961,-500.0,0.00019178,2]
[388698402,1759321834970,-2835.74,0.00019178,2]
[388698403,1759321834980,-597.08,0.00019178,2]
[388698404,1759321834989,-500.0,0.00019178,2]
[388698405,1759321834999,-500.0,0.00019178,2]
[388698406,1759321835009,-604.04,0.00019178,2]
[388698407,1759321835020,-813.89,0.00019178,2]
[388698408,1759321835029,-500.0,0.00019178,2]
[388698409,1759321835038,-1919.86,0.00019178,2]
[388698410,1759321835048,-167.68177526,0.00019178,2]
[388698411,1759321835057,-500.0,0.00019178,2]
[388698412,1759321835067,-2845.23,0.00019178,2]
[388698413,1759321835077,-480.0,0.00019178,2]
[388698414,1759321835086,-520.36,0.00019178,2]
[388698415,1759321835095,-594.37,0.00019178,2]
[388698416,1759321835105,-1000.0,0.00019178,2]
[388698417,1759321835114,-500.0,0.00019178,2]
[388698418,1759321835124,-486.03556946,0.00019178,2]
[388698419,1759321835135,-500.0,0.00019178,2]
[388698420,1759321835145,-735.28,0.00019178,2]
[388698421,1759321835154,-3053.05,0.00019178,2]
[388698422,1759321835163,-500.0,0.00019178,2]
[388698423,1759321835173,-671.94,0.00019178,2]
[388698424,1759321835182,-1314.73,0.00019178,2]
[388698425,1759321835192,-500.0,0.00019178,2]
[388698426,1759321835202,-599.23,0.00019178,2]
[388698427,1759321835212,-666.86,0.00019178,2]
[388698428,1759321835221,-480.0,0.00019178,2]
[388698429,1759321835231,-500.0,0.00019178,2]
[388698430,1759321835241,-2778.08,0.00019178,2]
[388698431,1759321835250,-705.59,0.00019178,2]
[388698432,1759321835259,-500.0,0.00019178,2]
[388698433,1759321835273,-500.0,0.00019178,2]
[388698434,1759321835282,-741.42,0.00019178,2]
[388698435,1759321835292,-845.2,0.00019178,2]
[388698436,1759321835303,-500.0,0.00019178,2]
[388698437,1759321835312,-1126.69,0.00019178,2]
[388698438,1759321835323,-3581.98,0.00019178,2]
[388698439,1759321835333,-1516.75,0.00019178,2]
[388698440,1759321835343,-500.0,0.00019178,2]
[388698441,1759321835352,-733.07,0.00019178,2]
[388698442,1759321835362,-500.0,0.00019178,2]
[388698443,1759321835372,-9167.63,0.00019178,2]
[388698444,1759321835382,-500.0,0.00019178,2]
[388698445,1759321835391,-500.0,0.00019178,2]
[388698446,1759321835402,-541.2,0.00019178,2]
[388698447,1759321835413,-500.0,0.00019178,2]
[388698448,1759321835423,-382.72254699,0.00019178,2]
[388698449,1759321835432,-1344.06,0.00019178,2]
[388698450,1759321835445,-721.24,0.00019178,2]
[388698451,1759321835455,-500.0,0.00019178,2]
[388698452,1759321835464,-1030.61,0.00019178,2]
[388698453,1759321835474,-1694.29,0.00019178,2]
[388698454,1759321835483,-1091.43,0.00019178,2]
[388698455,1759321835494,-480.0,0.00019178,2]
[388698456,1759321835504,-481.89933139,0.00019178,2]
[388698457,1759321835514,-480.0,0.00019178,2]
[388698458,1759321835525,-483.10418945,0.00019178,2]
[388698459,1759321835535,-1144.06,0.00019178,2]
[388698460,1759321835546,-500.0,0.00019178,2]
[388698461,1759321835556,-1335.93,0.00019178,2]
[388698462,1759321835567,-500.0,0.00019178,2]
[388698463,1759321835578,-500.0,0.00019178,2]
[388698464,1759321835589,-500.0,0.00019178,2]
[388698465,1759321835599,-1839.37,0.00019178,2]
[388698466,1759321835609,-480.0,0.00019178,2]
[388698467,1759321835618,-1459.47,0.00019178,2]
[388698468,1759321835628,-480.0,0.00019178,2]
[388698469,1759321835638,-836.98,0.00019178,2]
[388698470,1759321835648,-2105.57,0.00019178,2]
[388698471,1759321835657,-638.95,0.00019178,2]
[388698472,1759321835668,-500.0,0.00019178,2]
[388698473,1759321835678,-1315.4,0.00019178,2]
[388698474,1759321835689,-878.29,0.00019178,2]
[388698475,1759321835698,-500.0,0.00019178,2]
[388698476,1759321835708,-500.0,0.00019178,2]
[388698477,1759321835718,-1595.24,0.00019178,2]
[388698478,1759321835728,-1473.32,0.00019178,2]
[388698479,1759321835739,-500.0,0.00019178,2]
[388698480,1759321835748,-482.47756016,0.00019178,2]
[388698481,1759321835758,-480.0,0.00019178,2]
[388698482,1759321835769,-482.30847422,0.00019178,2]
[388698483,1759321835779,-1324.01,0.00019178,2]
[388698484,1759321835791,-1220.82,0.00019178,2]
[388698485,1759321835800,-912.25,0.00019178,2]
[388698486,1759321835810,-500.0,0.00019178,2]
[388698487,1759321835820,-500.0,0.00019178,2]
[388698488,1759321835835,-500.0,0.00019178,2]
[388698489,1759321835845,-999.89,0.00019178,2]
[388698490,1759321835855,-1163.38,0.00019178,2]
[388698491,1759321835865,-485.61007866,0.00019178,2]
[388698492,1759321835879,-200.0,0.00019178,10]
[388698493,1759321835889,-200.0,0.00019178,10]
[388698494,1759321835899,-207.921585,0.00019178,10]
[388698495,1759321835910,-480.0,0.00019178,2]
[388698496,1759321835920,-500.0,0.00019178,2]
[388698497,1759321835930,-500.0,0.00019178,2]
[388698498,1759321835940,-1580.81,0.00019178,2]
[388698499,1759321835950,-2709.32,0.00019178,2]
[388698500,1759321835959,-500.0,0.00019178,2]
[388698501,1759321836135,-500.0,0.00019178,2]
[388698502,1759321836150,-577.98,0.00019178,2]
[388698503,1759321836160,-531.76,0.00019178,2]
[388698504,1759321836171,-500.0,0.00019178,2]
[388698505,1759321836180,-480.0,0.00019178,2]
[388698506,1759321836190,-480.0,0.00019178,2]
[388698507,1759321836200,-1438.98,0.00019178,2]
[388698508,1759321836209,-500.0,0.00019178,2]
[388698509,1759321836218,-481.22513396,0.00019178,2]
[388698510,1759321836228,-500.0,0.00019178,2]
[388698511,1759321836238,-3424.63,0.00019178,2]
[388698512,1759321836248,-1244.25,0.00019178,2]
[388698513,1759321836258,-500.0,0.00019178,2]
[388698514,1759321836269,-500.0,0.00019178,2]
[388698515,1759321836278,-500.0,0.00019178,2]
[388698516,1759321836288,-1550.16,0.00019178,2]
[388698517,1759321836298,-500.0,0.00019178,2]
[388698518,1759321836308,-500.0,0.00019178,2]
[388698519,1759321836318,-862.91,0.00019178,2]
[388698520,1759321836327,-1140.21,0.00019178,2]
[388698521,1759321836337,-1371.74,0.00019178,2]
[388698522,1759321836346,-872.96,0.00019178,2]
[388698523,1759321836355,-500.0,0.00019178,2]
[388698524,1759321836365,-4231.65,0.00019178,2]
[388698525,1759321836374,-645.5,0.00019178,2]
[388698526,1759321836384,-500.0,0.00019178,2]
[388698527,1759321836394,-1232.6,0.00019178,2]
[388698528,1759321836404,-500.0,0.00019178,2]
[388698529,1759321836414,-1223.3,0.00019178,2]
[388698530,1759321836424,-590.09,0.00019178,2]
[388698531,1759321836434,-1447.95,0.00019178,2]
[388698532,1759321836444,-798.59,0.00019178,2]
[388698533,1759321836454,-500.0,0.00019178,2]
[388698534,1759321836463,-1782.85,0.00019178,2]
[388698535,1759321836474,-500.0,0.00019178,2]
[388698536,1759321836483,-1838.64,0.00019178,2]
[388698537,1759321836493,-1516.56,0.00019178,2]
[388698538,1759321836503,-893.08,0.00019178,2]
[388698539,1759321836513,-500.0,0.00019178,2]
[388698540,1759321836524,-500.0,0.00019178,2]
[388698541,1759321836534,-500.0,0.00019178,2]
[388698542,1759321836543,-630.1,0.00019178,2]
[388698543,1759321836553,-500.0,0.00019178,2]
[388698544,1759321836563,-609.29,0.00019178,2]
[388698545,1759321836573,-2743.35,0.00019178,2]
[388698546,1759321836582,-266.82765787,0.00019178,2]
[388698547,1759321836592,-1057.58,0.00019178,2]
[388698548,1759321836602,-2029.61,0.00019178,2]
[388698549,1759321836612,-1681.29,0.00019178,2]
[388698550,1759321836622,-500.0,0.00019178,2]
[388698551,1759321836632,-480.0,0.00019178,2]
[388698552,1759321836642,-1605.61,0.00019178,2]
[388698553,1759321836652,-500.0,0.00019178,2]
[388698554,1759321836662,-396.43885582,0.00019178,2]
[388698555,1759321836671,-480.0,0.00019178,2]
[388698556,1759321836681,-500.0,0.00019178,2]
[388698557,1759321836691,-3964.1,0.00019178,2]
[388698558,1759321836701,-1745.65,0.00019178,2]
[388698559,1759321836711,-500.0,0.00019178,2]
[388698560,1759321836720,-1336.63234202,0.00019178,2]
[388698561,1759321836730,-19099.3079503,0.00019303,2]
[388698562,1759321836740,-500.0,0.00019303,2]
[388698563,1759321836750,-10000.0,0.00019352,2]
[388698564,1759321836759,-1365.85926184,0.0001942,2]
[388698565,1759321836770,-920.0,0.00019449,2]
[388698566,1759321836779,-151.0,0.00019449,2]
[388698567,1759321836789,-151.0,0.0001945,2]
[388698568,1759321836799,-151.0,0.0001945,2]
[388698569,1759321836809,-151.0,0.0001945,2]
[388698570,1759321836818,-151.0,0.00019451,2]
[388698571,1759321836833,-151.0,0.00019451,2]
[388698572,1759321836843,-500.0,0.00019452,2]
[388698573,1759321836854,-575.41,0.00019452,2]
[388698574,1759321836864,-520.0,0.00019452,3]
[388698575,1759321836875,-194.17830667,0.00019452,2]
[388698576,1759321836884,-649.27301049,0.00019452,2]
[388698577,1759321836894,-500.0,0.00019452,2]
[388698578,1759321836903,-500.0,0.00019452,2]
[388698579,1759321836913,-546.09523425,0.00019452,2]
[388698580,1759321836929,-480.0,0.00019452,2]
[388698581,1759321836939,-732.69,0.00019452,2]
[388698582,1759321836949,-491.82461799,0.00019452,2]
[388698583,1759321836959,-480.0,0.00019452,2]
[388698584,1759321836969,-500.0,0.00019452,2]
[388698585,1759321836978,-192.3234603,0.00019452,2]
[388698586,1759321836987,-500.0,0.00019452,2]
[388698587,1759321836997,-502.46,0.00019452,2]
[388698588,1759321837008,-500.0,0.00019452,2]
[388698589,1759321837018,-500.0,0.00019452,2]
[388698590,1759321837028,-500.0,0.00019452,2]
[388698591,1759321837038,-500.0,0.00019452,2]
[388698592,1759321837047,-500.0,0.00019452,2]
[388698593,1759321837056,-500.0,0.00019452,2]
[388698594,1759321837066,-500.0,0.00019452,2]
[388698595,1759321837076,-500.0,0.00019452,2]
[388698596,1759321837085,-500.0,0.00019452,2]
[388698597,1759321837094,-500.0,0.00019452,2]
[388698598,1759321837103,-500.0,0.00019452,2]
[388698599,1759321837113,-500.0,0.00019452,2]
[388698600,1759321837123,-500.0,0.00019452,2]
[388698601,1759321837133,-540.44,0.00019452,2]
[388698602,1759321837142,-500.0,0.00019452,2]
[388698603,1759321837152,-500.0,0.00019452,2]
[388698604,1759321837162,-480.0,0.00019452,2]
[388698605,1759321837172,-1093.76,0.00019452,2]
[388698606,1759321837181,-500.0,0.00019452,2]
[388698607,1759321837190,-269.25214669,0.00019452,2]
[388698608,1759321837199,-500.0,0.00019452,2]
[388698609,1759321837209,-462.4559287,0.00019452,2]
[388698610,1759321837218,-500.0,0.00019452,2]
[388698611,1759321837228,-653.65,0.00019452,2]
[388698612,1759321837237,-500.0,0.00019452,2]
[388698613,1759321837247,-500.0,0.00019452,2]
[388698614,1759321837256,-775.98,0.00019452,2]
[388698615,1759321837265,-500.0,0.00019452,2]
[388698616,1759321837275,-162.8369066,0.00019452,2]
[388698617,1759321837285,-726.09,0.00019452,2]
[388698618,1759321837294,-407.14340495,0.00019452,2]
[388698619,1759321837304,-580.53,0.00019452,2]
[388698620,1759321837314,-462.92134149,0.00019452,2]
[388698621,1759321837325,-500.0,0.00019452,2]
[388698622,1759321837335,-500.0,0.00019452,2]
[388698623,1759321837345,-500.0,0.00019452,2]
[388698624,1759321837355,-500.0,0.00019452,2]
[388698625,1759321837365,-769.46,0.00019452,2]
[388698626,1759321837375,-160.6428562,0.00019452,2]
[388698627,1759321837384,-1943.96,0.00019452,2]
[388698628,1759321837393,-500.0,0.00019452,2]
[388698629,1759321837403,-500.0,0.00019452,2]
[388698630,1759321837412,-612.02,0.00019452,2]
[388698631,1759321837422,-969.0,0.00019452,2]
[388698632,1759321837431,-763.2,0.00019452,2]
[388698633,1759321837441,-500.0,0.00019452,2]
[388698634,1759321837450,-662.1,0.00019452,2]
[388698635,1759321837465,-500.0,0.00019452,2]
[388698636,1759321837474,-500.0,0.00019452,2]
[388698637,1759321837483,-1161.75,0.00019452,2]
[388698638,1759321837493,-1820.64,0.00019452,2]
[388698639,1759321837502,-711.47,0.00019452,2]
[388698640,1759321837511,-587.79125141,0.00019452,2]
[388698641,1759321837521,-688.73,0.00019452,2]
[388698642,1759321837531,-1119.87,0.00019452,2]
[388698643,1759321837540,-695.1,0.00019452,2]
[388698644,1759321837550,-557.33,0.00019452,2]
[388698645,1759321837559,-2140.28,0.00019452,2]
[388698646,1759321837568,-914.94,0.00019452,2]
[388698647,1759321837577,-500.0,0.00019452,2]
[388698648,1759321837587,-716.76,0.00019452,2]
[388698649,1759321837596,-500.0,0.00019452,2]
[388698650,1759321837605,-500.0,0.00019452,2]
[388698651,1759321837615,-500.0,0.00019452,2]
[388698652,1759321837624,-500.0,0.00019452,2]
[388698653,1759321837633,-500.0,0.00019452,2]
[388698654,1759321837643,-163.32332189,0.00019452,2]
[388698655,1759321837653,-1047.55,0.00019452,2]
[388698656,1759321837662,-500.0,0.00019452,2]
[388698657,1759321837671,-500.0,0.00019452,2]
[388698658,1759321837681,-2079.09,0.00019452,2]
[388698659,1759321837691,-816.71,0.00019452,2]
[388698660,1759321837700,-500.0,0.00019452,2]
[388698661,1759321837709,-500.0,0.00019452,2]
[388698662,1759321837719,-500.0,0.00019452,2]
[388698663,1759321837728,-1092.96,0.00019452,2]
[388698664,1759321837738,-500.0,0.00019452,2]
[388698665,1759321837746,-500.0,0.00019452,2]
[388698666,1759321837756,-758.83,0.00019452,2]
[388698667,1759321837765,-583.79,0.00019452,2]
[388698668,1759321837776,-500.0,0.00019452,2]
[388698669,1759321837785,-394.72960117,0.00019452,2]
[388698670,1759321837795,-636.07,0.00019452,2]
[388698671,1759321837804,-500.0,0.00019452,2]
[388698672,1759321837814,-500.0,0.00019452,2]
[388698673,1759321837826,-480.0,0.00019452,2]
[388698674,1759321837838,-500.0,0.00019452,2]
[388698675,1759321837847,-500.0,0.00019452,2]
[388698676,1759321837857,-500.0,0.00019452,2]
[388698677,1759321837866,-500.0,0.00019452,2]
[388698678,1759321837878,-500.0,0.00019452,2]
[388698679,1759321837888,-435.4302329,0.00019452,2]
[388698680,1759321837898,-413.99504296,0.00019452,2]
[388698681,1759321837907,-464.80415955,0.00019452,2]
[388698682,1759321837917,-2835.74,0.00019452,2]
[388698683,1759321837927,-597.08,0.00019452,2]
[388698684,1759321837936,-500.0,0.00019452,2]